Cogmind - Beta 10.2 @@@ ROGUE MODE // 2021.02.15 @ 21:28:03 Player: Undine Result: Destroyed by Y-45 Defender with Heavy Assault Rifle Performance ------------- Evolutions (1) 500 Regions Visited (2) 400 Robots Destroyed (16) 80 Value Destroyed (375) 375 Prototype IDs (0) 0 Alien Tech Used (0) 0 Bonus (0) 0 TOTAL SCORE: 1355 Bonus ------- None Cogmind --------- Core Integrity 0/400 Matter 300/300 Energy 240/250 System Corruption 0% Temperature Cool (0) Movement Walking (120) Location -9/Materials Parts ------- > --- POWER (1) -------- Ion Engine > --- PROPULSION (2) --- Aluminum Leg Aluminum Leg > --- UTILITY (3) ------ Heat Sink Weight Redist. System > --- WEAPON (3) ------- Katana > --- INVENTORY (4) ---- Heat Sink Small Storage Unit Peak State ------------ > --- POWER ------------ Light Ion Engine > --- PROPULSION ------- Wheel Wheel > --- UTILITY ---------- Heat Sink Small Storage Unit > --- WEAPON ----------- Heavy Assault Rifle Shotgun Shotgun > --- INVENTORY -------- Compact Wheel Compact Wheel Heat Sink Heavy Assault Rifle Grenade Launcher [Rating: 11] Favorites ----------- Power Light Ion Engine Engine Light Ion Engine Propulsion Wheel Leg Aluminum Leg Wheel Wheel Utility Small Storage Unit Device Heat Sink Storage Small Storage Unit Weapon EM Pulse Gun Energy Gun EM Pulse Gun Ballistic Gun Shotgun Launcher Grenade Launcher Slashing Weapon Katana Build | -11 -10 -9 ------- Run | Scr Mat Mat Slots Evolved 2 | . . 2 Power . | . . . Propulsion . | . . . Utility 1 | . . 1 Weapon 1 | . . 1 Parts Attached 30 | 6 12 12 Power 3 | 1 1 1 Engine 3 | 1 1 1 Core . | . . . Reactor . | . . . Propulsion 8 | 2 4 2 Treads . | . . . Leg 2 | . . 2 Wheel 6 | 2 4 . Hover . | . . . Flight . | . . . Utility 6 | . 2 4 Device 5 | . 1 4 Storage 1 | . 1 . Processor . | . . . Hackware . | . . . Protection . | . . . Artifact . | . . . Weapon 13 | 3 5 5 Energy Gun 4 | 3 . 1 Energy Cannon . | . . . Ballistic Gun 6 | . 4 2 Ballistic Cannon . | . . . Launcher 2 | . 1 1 Special Weapon . | . . . Impact Weapon . | . . . Slashing Weapon 1 | . . 1 Piercing Weapon . | . . . Special Melee Weapon . | . . . Unidentified Prototypes . | . . . Parts Lost 14 | . 2 12 Power 1 | . . 1 Propulsion 3 | . 1 2 Utility 3 | . . 3 Weapon 7 | . 1 6 Highest Loss Streak 7 | . 2 7 Average Slot Usage (%) 68 | . 75 59 Engine 10 | . 14 6 Leg 1 | . . 4 Wheel 17 | . 24 9 Device 7 | . 3 11 Storage 8 | . 7 10 Energy Gun 6 | . 10 . Ballistic Gun 12 | . 10 15 Launcher 3 | . 4 1 Naked Turns . | . . . Heaviest Build 17 | 7 14 17 Greatest Support 32 | 20 32 26 Greatest Overweight (x) 4 | . 1 4 Average Overweight (x) . | . . . Largest Inventory Capacity 6 | 4 6 6 Average Capacity 5 | 4 5 5 Most Carried 6 | 1 6 6 Average Carried 1 | . 1 1 Final Capacity 6 | 4 6 4 Final Carried 5 | 1 5 2 Class Distribution -------------------- 88% | Mutant 11% | Gunner Dominant Class ---------------- Mutant | -10/Materials Mutant | -9/Materials Resources | -11 -10 -9 ----------- Run | Scr Mat Mat Matter Collected 648 | 260 156 232 Remotely . | . . . Salvage Created 509 | 61 204 244 Parts 29 | 3 18 8 Haulers Intercepted . | . . . Recyclers Shooed 1 | . 1 . Parts Field Recycled . | . . . Retrieved Matter . | . . . Parts Self-Destructed . | . . . Prevented . | . . . Kills | -11 -10 -9 ------- Run | Scr Mat Mat Combat Hostiles Destroyed 14 | 1 7 6 Guns 12 | 1 5 6 AOE 2 | . 2 . Classes Destroyed 5 | 2 2 1 Worker 1 | 1 . . Recycler 1 | . 1 . Swarmer 6 | . 6 . Grunt 7 | 1 1 5 Duelist 1 | . . 1 Best Kill Streak 6 | 2 3 6 Combat Bots Only 6 | 1 3 6 Max Kills in Single Turn 2 | 1 2 1 Gunslinging . | . . . Exploded 2 | . 2 . Melee . | . . . Uniques/NPCs Destroyed . | . . . Combat | -11 -10 -9 -------- Run | Scr Mat Mat Damage Taken 1751 | 35 328 1388 Core 514 | . 114 400 Absorbed by Shields . | . . . Core Remaining (%) 77 | 100 54 . Volleys Fired 62 | 5 26 31 Largest 3 | 2 2 3 Hottest 80 | 80 80 69 Shots Fired 105 | 10 41 54 Gun 102 | 10 38 54 Cannon . | . . . Launcher 3 | . 3 . Special . | . . . Kinetic 64 | . 16 48 Thermal 10 | . 4 6 Explosive 3 | . 3 . Electromagnetic 28 | 10 18 . Robot Hit Streak 25 | 4 6 25 Robot Miss Streak 7 | 1 7 4 Penetration Max . | . . . Secondary Targets 1 | . . 1 Max Gunslinging Chain 1 | . . 1 Shots Hit Robots 71 | 7 22 42 Core Hits 24 | 2 11 11 Critical Hits 1 | . . 1 Critical Kills . | . . . Critical Parts Destroyed 1 | . . 1 Melee Attacks . | . . . Impact . | . . . Slashing . | . . . Piercing . | . . . Sneak Attacks . | . . . Combat Hostiles . | . . . Follow-up Attacks . | . . . Damage Inflicted 1048 | 94 317 637 Guns 929 | 94 198 637 Cannons . | . . . Explosions 115 | . 115 . Melee . | . . . Ramming 4 | . 4 . Kinetic 712 | . 98 614 Thermal 23 | . . 23 Explosive 115 | . 115 . Electromagnetic 194 | 94 100 . Impact . | . . . Slashing . | . . . Piercing . | . . . Highest Corruption . | . . . Average Corruption . | . . . Corruption Purged . | . . . Overload Shots . | . . . Overflow Damage . | . . . Projectiles . | . . . Explosions . | . . . Melee . | . . . Knockbacks . | . . . Impact . | . . . Kinetic . | . . . Secondary . | . . . Self-Inflicted Damage 2 | . 2 . Shots . | . . . Rammed 2 | . 2 . Targets Rammed 2 | . 2 . Kicked . | . . . Crushed . | . . . Highest Temperature 72 | 54 72 33 Average Temperature 32 | 28 38 18 Received Heat Transfer 585 | 18 30 537 Siege Activations . | . . . Robots Corrupted . | . . . Combat Hostiles . | . . . Parts Fried . | . . . Impact Corruptions . | . . . Robots Melted . | . . . Combat Hostiles . | . . . Parts Melted . | . . . Heat Transferred 50 | . . 50 Parts Sabotaged . | . . . Parts Stolen . | . . . Parts Stripped . | . . . Power Chain Reactions . | . . . Missiles Intercepted . | . . . Alert | -11 -10 -9 ------- Run | Scr Mat Mat Peak Influence 201 | 25 201 174 Initial 84 | . 16 84 Average 97 | 6 114 112 Maximum Alert Level 1 | . 1 . Low Security (%) 94 | 100 87 100 Level 1 5 | . 12 . Level 2 . | . . . Level 3 . | . . . Level 4 . | . . . Level 5 . | . . . High Security . | . . . Max Security . | . . . Squads Dispatched 1 | . 1 . Investigation . | . . . Extermination . | . . . Reinforcement 1 | . 1 . Assault . | . . . Garrison . | . . . Intercept . | . . . Construction Impeded . | . . . Haulers Reinforced . | . . . Stealth | -11 -10 -9 --------- Run | Scr Mat Mat Distress Signals 3 | . 1 2 Communications Jammed . | . . . Distress Signals . | . . . Times Spotted 21 | 1 9 11 Peak Tracking Total 9 | 1 3 9 Tactical Retreats . | . . . Traps | -11 -10 -9 ------- Run | Scr Mat Mat Traps Triggered . | . . . Indirectly . | . . . Trap Hack Attempts . | . . . Triggered . | . . . Disarmed 6 | . 6 . Reprogrammed . | . . . Reused . | . . . Traps Extracted . | . . . Installed . | . . . Triggered . | . . . Machines | -11 -10 -9 ---------- Run | Scr Mat Mat Machines Disabled 1 | . 1 . Max in Single Turn 1 | . 1 . Machines Sabotaged . | . . . Garrisons Compromised . | . . . Overloaded Fab Kills . | . . . Fab Network Shutdowns . | . . . Hacking | -11 -10 -9 --------- Run | Scr Mat Mat Machines Accessed 1 | . 1 . Terminals 1 | . 1 . Fabricators . | . . . Repair Stations . | . . . Recycling Units . | . . . Scanalyzers . | . . . Garrison Access . | . . . Total Hacks 2 | . 2 . Successful 2 | . 2 . Failed . | . . . Catastrophic . | . . . Database Lockouts . | . . . Manual . | . . . Terminals 2 | . 2 . Fabricators . | . . . Repair Stations . | . . . Recycling Units . | . . . Scanalyzers . | . . . Garrison Access . | . . . Terminal Hacks 2 | . 2 . Disarm Traps 2 | . 2 . Fabricator Hacks . | . . . Repair Station Hacks . | . . . Recycling Unit Hacks . | . . . Scanalyzer . | . . . Garrison Access Hacks . | . . . Unauthorized Hacks . | . . . Terminals . | . . . Fabricators . | . . . Repair Stations . | . . . Recycling Units . | . . . Scanalyzers . | . . . Garrison Access . | . . . Data Cores Recovered . | . . . Used . | . . . Hacking Detections 1 | . 1 . Full Trace Events . | . . . Feedback Events . | . . . Feedback Blocked . | . . . Robot Schematics Acquired . | . . . Robots Built . | . . . Matter . | . . . Time . | . . . Total Robot Build Rating . | . . . Part Schematics Acquired . | . . . Parts Built . | . . . Matter . | . . . Time . | . . . Total Part Build Rating . | . . . Parts Repaired . | . . . Time . | . . . Parts Recycled . | . . . Recycled Matter . | . . . Retrieved Matter . | . . . Retrieved Components . | . . . Parts Scanalyzed . | . . . Part Schematics Acquired . | . . . Parts Damaged . | . . . Bothacking | -11 -10 -9 ------------ Run | Scr Mat Mat Used RIF Installer . | . . . Robots Hacked . | . . . Non-combat . | . . . Combat . | . . . Robot Hacks Applied . | . . . Relay Couplers Released . | . . . Robots Rewired . | . . . Allies Hacked . | . . . Hacks Repelled . | . . . Allies | -11 -10 -9 -------- Run | Scr Mat Mat Total Allies . | . . . Largest Group . | . . . Highest-Rated Group . | . . . Highest-Rated Ally . | . . . Total Orders . | . . . Ally Attacks . | . . . Total Damage . | . . . Kills . | . . . Allies Corrupted . | . . . Allies Melted . | . . . Intel | -11 -10 -9 ------- Run | Scr Mat Mat Robot Analysis Total . | . . . Derelict Logs Recovered . | . . . Drone Launches . | . . . Drone Recoveries . | . . . Exploration | -11 -10 -9 ------------- Run | Scr Mat Mat Turns Passed 620 | 95 287 238 Spaces Moved 468 | 98 230 140 Core 35 | 24 . 11 Treads . | . . . Legs 42 | . . 42 Wheels 391 | 74 230 87 Hover . | . . . Flight . | . . . Fastest Speed 50 | 50 80 80 Average Speed 85 | 72 83 96 Slowest Speed 250 | 80 100 250 Overloaded Moves . | . . . Propulsion Burnouts . | . . . Robots Hopped . | . . . Cave-ins Triggered . | . . . Exploration Rate (%) 15 | 5 30 10 Regions Visited 2 Branch Regions . Pre-discovered Areas . | . . . Known Exits Taken . | . . . Unknown Exits Taken 2 | 1 1 . Scrap Searched . | . . . Spaces Dug . | . . . Terrain Destroyed 19 | . 19 . Melee . | . . . Projectile . | . . . AOE 19 | . 19 . Terrain Rammed . | . . . Walls Destroyed . | . . . Machines Disabled . | . . . Actions | -11 -10 -9 --------- Run | Scr Mat Mat Total 588 | 108 286 194 Wait 3 | . 1 2 Move 466 | 97 229 140 Hop . | . . . Pick Up 14 | . 8 6 Fast Attach 11 | 5 2 4 Attach 12 | . 4 8 Detach 3 | . 2 1 Swap 7 | 1 6 . Drop 8 | . 6 2 Fire 62 | 5 26 31 Melee . | . . . Ram 2 | . 2 . Kick . | . . . Crush . | . . . Escape Stasis . | . . . Rewire . | . . . Trap . | . . . Miscellaneous . | . . . Route ------- -11/Scrapyard -10/Materials -9/Materials History --------- Turn | Location | Event 2 | -11/Scrapyard | Met Revision 17 68 | -11/Scrapyard | Discovered new exit (range 8) 96 | -11/Scrapyard | Entered Materials 306 | -10/Materials | Build established: Mutant 367 | -10/Materials | Discovered new exit (range 14) 383 | -10/Materials | Entered another Materials area 383 | -9/Materials | Evolved 2 slots: Utility x1, Weapon x1 506 | -9/Materials | Lost 5 parts (1p1n1u2w) 525 | -9/Materials | Core integrity fell below 50% 556 | -9/Materials | Core integrity fell below 20% 580 | -9/Materials | Lost 7 parts (1n2u4w) 621 | -9/Materials | Destroyed by Y-45 Defender with Heavy Assault Rifle Last Messages --------------- G-34 Mercenary destroyed. Hvy. Assault Rifle destroyed. Acquired Sml. Laser. Heat Sink destroyed. Terrain Scanner destroyed. Sml. Laser destroyed. G-34 Mercenary destroyed. Acquired 46 matter. Acquired Ion Engine. Acquired 36 matter. Acquired Aluminum Leg. Acquired Weight Redist. System. Acquired 54 matter. Acquired Aluminum Leg. Acquired 46 matter. Acquired Heat Sink. Acquired Katana. Acquired 26 matter. Acquired 24 matter. Acquired Heat Sink. Map ----- +----------------------------------------------------+ | ?????????????????????????????????????????????????? | | ?????????????????????????????????????????????????? | | ?????????????????????????????????????????????????? | | ?????????????????????????????????????????????????? | | ?????????????????????????????????????????????????? | | ?????????????????????????????????????????????????? | | ???????????????????????????????????????????? ?? | | ???????????????????????????????????????????? #? | | ???????????????????????????????????????????? #? | | ???????????????????????????????????????????# #? | | ???????????????????????????????????????????# #? | | ???????????????????????????????????????????# ## | | ???????????????????????????????????????????# | | ????????????????????????#??????????????????# | | ??????????????????????????????????????????## | | ?????????????????????????????????????????? | | ??????????#???????????????????????????????? | | ??????????# ??????????? ? ????????????????? | | ??????????# ???????? ?????????????????????# | | ??????????# ############################## # | | ??????????# # | | ??????????# # | | ??????????# # | | ??????????# """ = ################### # | | ??????????# """ % ###%#????????# # # | | ??????????# """ #?#@#????????# """ # # | | ?????????? #?# #??#?#???# """ # # | | ??????????? ###Y########?# """ # # | | ???????????##### ##* =! #?#== # # | | ???????????????# ## #?# """ + # | | ???????????????# ## #?# """ # # | | ????????????#### # """ #?# """ # # | | ????????????# + """"" #?# # # | | ????????????# #####+### """"" #?############### | | ????????????? # # """"" #???????????????? | | ????????????? ?+ """ # """ ?#???????????????? | | ???????????????# """ ########??????????????????? | | ???????????????# """ #???#?????????????????????? | | ???????????????# #?????????????????????????? | | ???????????????##########???#????????????????????? | | | | | | | | | | | | | | | | | | | | | +----------------------------------------------------+ Best States ------------- Heat Dissipation 38 Energy Generation 10 Energy Capacity 250 Matter Stores 300 Matter Capacity 300 Sight Range 16 Terrain Scan Range 14 Terrain Scan Density 10 Additional Mass Support 6 Evasion (%) 50 Item Schematics ----------------- None Robot Schematics ------------------ None Fabricated ------------ Nothing Alien Tech Used ----------------- None Achievements -------------- None Challenges ------------ None Game ------ Seed MeleeLauncherGravjet Manual? 0 Play Time 00:12:08 Cumulative 3.2 hours Start 2021.02.15 @ 21:16:53 End 2021.02.15 @ 21:28:03 Sessions 1 Manual Loads 0 Difficulty Rogue Special Mode None Game No. 3 Rogue 3 Adventurer 0 Explorer 0 Win Type - Total 0 Types 0/0/0/0/0/0/0/0/0 Lore% 2 Gallery% 8 Achievement% 7 Wizard Run 0 Options --------- ASCII 0 Keyboard 0 Movement Vi Keybinds 0 Fullscreen 1 Font 24/Terminus Map View 76x50 Tactical HUD 0 Map Filters NONE Filters NONE Steam 1 RUN: 64f5a32b-f32f-44de-8be6-30e8b13e70a9